Cogmind - Beta 10.2 @@@ ROGUE MODE // 2020.11.29 @ 14:26:28 // Halloween2020/ForbiddenLore Player: sentrybuster Result: Self-destructed Performance ------------- Evolutions (6) 3000 Regions Visited (12) 2400 Robots Destroyed (102) 510 Value Destroyed (4766) 4766 Prototype IDs (10) 200 Alien Tech Used (0) 0 Bonus (2578) 2578 TOTAL SCORE: 13454 Bonus ------- High Alert Combat Kills 730 Follower Combat Kills 1741 Built Enhanced Grunts 300 Met R17 at Cetus 500 Friendly Fire -693 Cogmind --------- Core Integrity 1043/1150 Matter 228/300 Energy 190/190 System Corruption 13% Temperature Cool (532) Movement Treading (160) Location -4/Factory Parts ------- > --- POWER (1) -------- Light Quantum Reactor > --- PROPULSION (6) --- Centrium Heavy Treads Centrium Heavy Treads Centrium Heavy Treads > --- UTILITY (6) ------ Advanced Cryofiber Web Advanced Heat Sink Enhanced Optical Array Centrium Medium Armor Plating Centrium Medium Armor Plating > --- WEAPON (6) ------- Electrolaser Advanced Variable Charge Gun Improved KE Penetrator Improved KE Penetrator Improved KE Penetrator > --- INVENTORY (4) ---- Neutron Cannon Advanced Datajack Phasing Sabre Peak State ------------ > --- POWER ------------ Quantum Reactor > --- PROPULSION ------- Centrium Heavy Treads Centrium Heavy Treads Centrium Heavy Treads > --- UTILITY ---------- Advanced Cryofiber Web Advanced Heat Sink Advanced Heat Sink Centrium Medium Armor Plating Centrium Medium Armor Plating Advanced Shield Generator > --- WEAPON ----------- Advanced Variable Charge Gun Advanced Variable Charge Gun Neutron Cannon KE Penetrator Improved KE Penetrator Improved KE Penetrator > --- INVENTORY -------- Myomer Leg Improved KE Penetrator Advanced Datajack Phasing Sabre [Rating: 150] Favorites ----------- Power Improved Ion Engine Engine Improved Ion Engine Power Core Micro Nuclear Core Reactor Quantum Reactor Propulsion Centrium Heavy Treads Treads Centrium Heavy Treads Leg Aluminum Leg Wheel Compact Wheel Hover Unit Gyrokinetic Inverter Utility Advanced Heat Sink Device Advanced Heat Sink Storage Small Storage Unit Processor Advanced Targeting Computer Hackware Hacking Suite Protection Centrium Medium Armor Plating Weapon KE Penetrator Energy Gun Advanced Variable Charge Gun Energy Cannon Advanced Plasma Cannon Ballistic Gun KE Penetrator Launcher Shock Bomb Launcher Impact Weapon Hammer Piercing Weapon Spear Special Melee Weapon Improved Datajack Build | -11 -10 -10 -9 -8 -7 -6 -6 -6 -5 -5 -5 -4 ------- Run | Scr Mat Min Mat Mat Fac Fac Low Low Fac Ext Cet Fac Slots Evolved 12 | . . . 2 2 2 2 . . 2 . . 2 Power . | . . . . . . . . . . . . . Propulsion 4 | . . . . . 2 . . . . . . 2 Utility 4 | . . . 1 2 . 1 . . . . . . Weapon 4 | . . . 1 . . 1 . . 2 . . . Parts Attached 139 | 6 1 3 11 11 20 21 4 1 12 27 9 13 Power 16 | 1 1 1 1 1 1 2 . . 1 3 1 3 Engine 7 | 1 1 1 1 . 1 1 . . . 1 . . Core 6 | . . . . 1 . 1 . . 1 2 . 1 Reactor 3 | . . . . . . . . . . . 1 2 Propulsion 37 | 2 . . . 4 6 8 2 . 4 8 2 1 Treads 23 | . . . . 4 2 6 . . 1 7 2 1 Leg 10 | 2 . . . . 4 2 1 . . 1 . . Wheel 2 | . . . . . . . . . 2 . . . Hover 2 | . . . . . . . 1 . 1 . . . Flight . | . . . . . . . . . . . . . Utility 31 | 1 . 1 2 2 7 4 2 . 1 5 2 4 Device 16 | . . . 2 . 5 1 1 . . 5 . 2 Storage 2 | 1 . . . . . . . . 1 . . . Processor 7 | . . 1 . . 2 2 . . . . . 2 Hackware 3 | . . . . 1 . 1 1 . . . . . Protection 3 | . . . . 1 . . . . . . 2 . Artifact . | . . . . . . . . . . . . . Weapon 55 | 2 . 1 8 4 6 7 . 1 6 11 4 5 Energy Gun 20 | . . 1 1 1 5 1 . . 6 1 2 2 Energy Cannon 8 | . . . 2 1 . 1 . . . 2 . 2 Ballistic Gun 18 | 2 . . 3 . 1 . . 1 . 8 2 1 Ballistic Cannon . | . . . . . . . . . . . . . Launcher 4 | . . . 1 1 . 2 . . . . . . Special Weapon . | . . . . . . . . . . . . . Impact Weapon 2 | . . . 1 1 . . . . . . . . Slashing Weapon . | . . . . . . . . . . . . . Piercing Weapon 2 | . . . . . . 2 . . . . . . Special Melee Weapon 1 | . . . . . . 1 . . . . . . Unidentified Prototypes 10 | . . . 1 . 2 . . . 2 . 4 1 Parts Lost 78 | . . . 3 18 3 19 8 . 2 17 1 7 Power 10 | . . . 1 2 . 3 . . 1 2 . 1 Propulsion 22 | . . . . 5 3 6 3 . . 5 . . Utility 19 | . . . 1 5 . 3 3 . . 4 . 3 Weapon 27 | . . . 1 6 . 7 2 . 1 6 1 3 Highest Loss Streak 12 | . . . 2 6 3 12 6 . 1 6 1 4 Average Slot Usage (%) 67 | . 85 94 98 53 66 77 42 2 17 56 72 80 Engine 3 | . 14 13 11 1 6 . . . . 3 4 . Treads 9 | . . . . 8 10 15 7 . 1 12 12 14 Leg 5 | . 28 28 22 2 5 3 3 2 . 1 . . Hover 1 | . . . . . . . 3 . 4 3 . . Device 11 | . . . 10 2 18 19 11 . . 7 11 16 Storage 2 | . 14 14 11 5 . . . . 1 . . . Processor 5 | . . 10 11 1 5 12 7 . . . . 2 Hackware 1 | . . . . 8 . 1 3 . . . . . Protection 2 | . . . . 5 . . . . . . 8 10 Energy Gun 6 | . . 10 8 . 17 4 1 . 5 4 4 11 Energy Cannon 3 | . . . 13 3 . 1 . . . 3 4 2 Ballistic Gun 8 | . 28 16 9 2 1 . . . . 13 22 16 Piercing Weapon 1 | . . . . . . 5 3 . . . . . Naked Turns 138 | . . . . 10 2 . 95 20 11 . . . Heaviest Build 82 | 10 12 16 27 26 24 35 9 . 14 39 67 82 Greatest Support 240 | 20 20 20 20 40 42 112 50 3 32 96 160 240 Greatest Overweight (x) 4 | . . . 1 2 1 4 . . 1 1 . . Average Overweight (x) . | . . . . . . . . . . . . . Largest Inventory Capacity 6 | 6 6 6 6 6 4 4 4 4 4 4 4 4 Average Capacity 4 | 5 6 6 6 5 4 4 4 4 4 4 4 4 Most Carried 6 | 4 5 6 6 5 4 4 4 4 4 4 4 4 Average Carried 3 | 1 4 5 5 3 3 2 . 4 2 3 3 3 Final Capacity 6 | 6 6 6 6 4 4 4 4 4 4 4 4 4 Final Carried 6 | 4 5 6 6 4 4 . 4 4 2 4 4 3 Class Distribution -------------------- 42% | Mutant 19% | Scavenger-Executioner 15% | Scavenger-Gunner 11% | Gunner 5% | Skirmisher 3% | Scavenger-Tank Dominant Class ---------------- Mutant | -10/Materials Mutant | -10/Mines Gunner | -9/Materials Mutant | -8/Materials Skirmisher | -7/Factory Mutant | -6/Factory Mutant | -6/Lower Caves Mutant | -6/Lower Caves Mutant | -5/Factory Scavenger-Gunner | -5/Extension Scavenger-Executioner | -5/Cetus Scavenger-Executioner | -4/Factory Resources | -11 -10 -10 -9 -8 -7 -6 -6 -6 -5 -5 -5 -4 ----------- Run | Scr Mat Min Mat Mat Fac Fac Low Low Fac Ext Cet Fac Matter Collected 2705 | 260 . 80 209 83 284 205 190 27 90 512 253 512 Remotely . | . . . . . . . . . . . . . Salvage Created 5604 | . . 300 604 438 284 769 133 . 263 1256 308 1249 Parts 235 | . . 11 34 11 18 47 5 . 5 43 12 49 Haulers Intercepted 4 | . . . 2 . . . . . 1 . . 1 Recyclers Shooed 5 | . . 1 1 1 . . . . 1 1 . . Parts Field Recycled . | . . . . . . . . . . . . . Retrieved Matter . | . . . . . . . . . . . . . Parts Self-Destructed 8 | . . . . . . . 8 . . . . . Prevented . | . . . . . . . . . . . . . Kills | -11 -10 -10 -9 -8 -7 -6 -6 -6 -5 -5 -5 -4 ------- Run | Scr Mat Min Mat Mat Fac Fac Low Low Fac Ext Cet Fac Combat Hostiles Destroyed 79 | . . 2 9 9 6 12 4 . 1 16 5 15 Melee 14 | . . . . 3 . 7 3 . 1 . . . Guns 47 | . . 2 7 1 6 1 1 . . 13 5 11 Cannons 8 | . . . 2 . . 1 . . . 2 . 3 AOE 8 | . . . . 3 . 3 . . . 1 . 1 Classes Destroyed 15 | . . 2 4 1 1 1 1 . 1 3 . 1 Worker 1 | . . . . 1 . . . . . . . . Builder 2 | . . . . . . . . . . 1 . 1 Hauler 4 | . . . 2 . . . . . 1 . . 1 Recycler 9 | . . 2 1 1 . 1 . . 1 3 . . Mechanic 1 | . . . . . . . . . . . . 1 Operator 2 | . . . 1 . . 1 . . . . . . Watcher 3 | . . . 1 . . 2 . . . . . . Swarmer 13 | . . . . . . 4 3 . . 6 . . Grunt 32 | . . . 4 6 3 3 . . . 3 2 11 Brawler 2 | . . . . . . . 1 . . . . 1 Sentry 19 | . . 2 5 3 . 4 . . . 4 . 1 Hunter 2 | . . . . . . . . . 1 . . 1 Programmer 6 | . . . . . 3 1 . . . 1 . 1 Behemoth 1 | . . . . . . . . . . 1 . . Cetus Guard 3 | . . . . . . . . . . . 3 . Thug 1 | . . . . . . . . . . 1 . . Butcher 1 | . . . . . . . . . . 1 . . Best Kill Streak 6 | . . 2 3 5 2 4 2 . 2 4 2 6 Combat Bots Only 4 | . . 2 3 3 2 4 2 . 1 3 2 4 Max Kills in Single Turn 3 | . . 1 2 3 1 2 1 . 1 3 1 2 Gunslinging 1 | . . . . . . . . . . 1 . 1 Exploded 2 | . . . . 2 . 2 . . . 1 . 1 Melee 1 | . . . . 1 . 1 1 . 1 . . . Uniques/NPCs Destroyed . | . . . . . . . . . . . . . Combat | -11 -10 -10 -9 -8 -7 -6 -6 -6 -5 -5 -5 -4 -------- Run | Scr Mat Min Mat Mat Fac Fac Low Low Fac Ext Cet Fac Damage Taken 11132 | . . 191 653 1864 670 2251 769 34 380 1333 437 2550 Core 2118 | . . 59 131 517 138 422 375 . 190 160 19 107 Absorbed by Shields 552 | . . . . . . . . . . 282 190 80 Reduced by Siege Mode 67 | . . . . . . . . . . . . 67 Core Remaining (%) 56 | 100 . 76 67 6 80 . . 6 . . 63 . Volleys Fired 226 | . 1 10 36 18 21 14 6 1 16 51 13 39 Largest 6 | . 2 2 3 3 3 4 1 1 3 5 6 6 Hottest 469 | . 40 76 173 173 131 167 80 30 231 287 469 401 Shots Fired 624 | . 2 20 88 31 42 23 6 1 20 158 70 163 Gun 500 | . 2 20 51 8 42 12 6 1 20 131 59 148 Cannon 106 | . . . 36 13 . 4 . . . 27 11 15 Launcher 18 | . . . 1 10 . 7 . . . . . . Special . | . . . . . . . . . . . . . Kinetic 300 | . 2 16 31 8 8 . . 1 . 76 50 108 Thermal 286 | . . 4 56 13 26 9 6 . 20 82 20 50 Explosive 13 | . . . 1 10 . 2 . . . . . . Electromagnetic 25 | . . . . . 8 12 . . . . . 5 Robot Hit Streak 25 | . . 7 17 6 15 11 3 . 12 12 12 25 Robot Miss Streak 11 | . 2 1 4 2 5 3 4 1 4 11 4 8 Penetration Max 1 | . . . . . . . . . . 1 1 1 Secondary Targets 7 | . . 1 1 . . . . . . 2 1 2 Max Gunslinging Chain 1 | . . 1 1 . . . . . . 1 1 1 Shots Hit Robots 466 | . . 14 56 64 26 36 12 . 14 96 46 102 Core Hits 261 | . . 7 24 26 14 41 8 . 12 65 18 46 Critical Hits 25 | . . 1 . . . 2 . . . 5 3 14 Critical Kills 14 | . . 1 . . . 1 . . . 4 1 7 Critical Parts Destroyed 11 | . . . . . . 1 . . . 1 2 7 Melee Attacks 103 | . . . 4 48 . 35 16 . . . . . Impact 52 | . . . 4 48 . . . . . . . . Slashing . | . . . . . . . . . . . . . Piercing 50 | . . . . . . 34 16 . . . . . Sneak Attacks 5 | . . . 1 . . 4 . . . . . . Combat Hostiles . | . . . . . . . . . . . . . Follow-up Attacks . | . . . . . . . . . . . . . Damage Inflicted 12446 | . . 142 1289 1380 547 1432 342 . 450 2956 1237 2671 Guns 7107 | . . 142 490 106 534 231 90 . 438 1865 1034 2177 Cannons 1933 | . . . 525 100 . 56 . . . 651 203 398 Explosions 1683 | . . . 207 547 . 402 . . . 440 . 87 Melee 1683 | . . . 63 625 . 743 252 . . . . . Ramming 40 | . . . 4 2 13 . . . 12 . . 9 Kinetic 3999 | . . 112 303 106 99 . . . . 1040 839 1500 Thermal 5450 | . . 30 910 100 381 165 90 . 438 1916 398 1022 Explosive 755 | . . . 9 547 . 112 . . . . . 87 Electromagnetic 519 | . . . . . 54 412 . . . . . 53 Impact 688 | . . . 63 625 . . . . . . . . Slashing . | . . . . . . . . . . . . . Piercing 995 | . . . . . . 743 252 . . . . . Highest Corruption 13 | . . . . . 7 1 13 13 . . . 13 Average Corruption 5 | . . . . . 4 1 6 13 . . . 6 Corruption Purged . | . . . . . . . . . . . . . Effects 54 | . . . . . 19 . 15 2 . . . 18 Message Errors 11 | . . . . . 6 . 2 . . . . 3 Matter Fused 5 | . . . . . 2 . 3 . . . . . Heat Flow Errors 4 | . . . . . 4 . . . . . . . Energy Discharges 4 | . . . . . 2 . . . . . . 2 Parts Rejected 1 | . . . . . . . . . . . . 1 Data Loss (minor) 7 | . . . . . 2 . 2 . . . . 3 Data Loss (major) 1 | . . . . . . . 1 . . . . . Alerts 1 | . . . . . . . 1 . . . . . Misdirections 8 | . . . . . . . 6 2 . . . . Targeting Errors 12 | . . . . . 3 . . . . . . 9 Overload Shots 2 | . . . . . . . . . . . 2 . Overflow Damage 248 | . . . 21 41 . 71 . . . 84 . 31 Projectiles 81 | . . . 21 . . . . . . 29 . 31 Explosions 81 | . . . . 26 . . . . . 55 . . Melee 86 | . . . . 15 . 71 . . . . . . Knockbacks 1 | . . . . 1 . . . . . . . . Impact 1 | . . . . 1 . . . . . . . . Kinetic . | . . . . . . . . . . . . . Secondary . | . . . . . . . . . . . . . Self-Inflicted Damage 209 | . . . 13 64 . 43 . . 6 83 . . Shots 6 | . . . 1 2 . 2 . . . 1 . . Rammed 12 | . . . 1 3 6 . . . 1 . . 1 Targets Rammed 12 | . . . 1 3 6 . . . 1 . . 1 Kicked . | . . . . . . . . . . . . . Crushed . | . . . . . . . . . . . . . Highest Temperature 560 | . . 30 333 333 164 57 30 . 222 312 202 560 Average Temperature 94 | . . 11 100 136 40 17 12 . 91 84 49 297 Received Heat Transfer 2508 | . . 54 237 723 129 561 117 . . 225 66 396 Effects 10 | . . . 2 1 . . . . . 4 . 3 Energy Bleed 4 | . . . 2 1 . . . . . 1 . . Interference 4 | . . . . . . . . . . 3 . 1 Short Circuit 2 | . . . . . . . . . . . . 2 Siege Activations 1 | . . . . . . . . . . . . 1 Total Turns 23 | . . . . . . . . . . . . 23 Longest Duration 23 | . . . . . . . . . . . . 23 Robots Corrupted . | . . . . . . . . . . . . . Combat Hostiles . | . . . . . . . . . . . . . Parts Fried . | . . . . . . . . . . . . . Impact Corruptions 3 | . . . . 3 . . . . . . . . Robots Melted . | . . . . . . . . . . . . . Combat Hostiles . | . . . . . . . . . . . . . Parts Melted 16 | . . . 2 . 4 2 . . 2 3 1 2 Heat Transferred 6954 | . . 74 1321 148 592 310 200 . 652 1996 548 1113 Parts Sabotaged . | . . . . . . . . . . . . . Parts Stolen 1 | . . . . . . . . 1 . . . . Parts Stripped . | . . . . . . . . . . . . . Power Chain Reactions . | . . . . . . . . . . . . . Missiles Intercepted . | . . . . . . . . . . . . . Alert | -11 -10 -10 -9 -8 -7 -6 -6 -6 -5 -5 -5 -4 ------- Run | Scr Mat Min Mat Mat Fac Fac Low Low Fac Ext Cet Fac Peak Influence 1399 | . 24 74 303 126 160 426 . . 157 389 1134 1399 Initial 634 | . . 9 28 12 52 78 . . 75 76 147 634 Average 306 | . 8 60 141 45 77 179 . . 117 280 643 943 Maximum Alert Level 4 | . . . 1 . . 2 . . . 1 4 4 Low Security (%) 51 | 100 100 100 72 100 100 63 . . 100 16 7 . Level 1 29 | . . . 27 . . 33 . . . 83 26 . Level 2 3 | . . . . . . 2 . . . . 28 9 Level 3 10 | . . . . . . . . . . . 26 58 Level 4 5 | . . . . . . . . . . . 10 31 Level 5 . | . . . . . . . . . . . . . High Security . | . . . . . . . . . . . . . Max Security . | . . . . . . . . . . . . . Squads Dispatched 27 | . . . 3 3 3 7 . . 2 . 3 6 Investigation 12 | . . . 2 . 1 3 . . 1 . 3 2 Extermination 5 | . . . . . 2 1 . . . . . 2 Reinforcement 9 | . . . 1 3 . 3 . . 1 . . 1 Assault 1 | . . . . . . . . . . . . 1 Garrison . | . . . . . . . . . . . . . Intercept . | . . . . . . . . . . . . . Construction Impeded . | . . . . . . . . . . . . . Haulers Reinforced 2 | . . . . . . . . . 1 . . 1 Stealth | -11 -10 -10 -9 -8 -7 -6 -6 -6 -5 -5 -5 -4 --------- Run | Scr Mat Min Mat Mat Fac Fac Low Low Fac Ext Cet Fac Distress Signals 12 | . . . 3 2 . 1 . . . 3 2 1 Communications Jammed . | . . . . . . . . . . . . . Distress Signals . | . . . . . . . . . . . . . Times Spotted 185 | . . 2 21 17 6 25 15 1 4 31 28 35 Peak Tracking Total 7 | . 1 2 4 6 3 5 7 1 5 5 5 6 Tactical Retreats 15 | . . . 1 1 . 4 5 . 1 2 . 1 Traps | -11 -10 -10 -9 -8 -7 -6 -6 -6 -5 -5 -5 -4 ------- Run | Scr Mat Min Mat Mat Fac Fac Low Low Fac Ext Cet Fac Traps Triggered 5 | . . . . . 1 1 . . . 2 . 1 Indirectly . | . . . . . . . . . . . . . Trap Hack Attempts . | . . . . . . . . . . . . . Triggered . | . . . . . . . . . . . . . Disarmed . | . . . . . . . . . . . . . Reprogrammed . | . . . . . . . . . . . . . Reused . | . . . . . . . . . . . . . Traps Extracted . | . . . . . . . . . . . . . Installed . | . . . . . . . . . . . . . Triggered . | . . . . . . . . . . . . . Machines | -11 -10 -10 -9 -8 -7 -6 -6 -6 -5 -5 -5 -4 ---------- Run | Scr Mat Min Mat Mat Fac Fac Low Low Fac Ext Cet Fac Machines Disabled 35 | . . . 6 . 1 13 . . . 2 1 12 Max in Single Turn 4 | . . . 3 . 1 4 . . . 2 1 3 Energy Cycler 1 | . . . . . . . . . . 1 . . Machines Sabotaged . | . . . . . . . . . . . . . Garrisons Compromised . | . . . . . . . . . . . . . Overloaded Fab Kills . | . . . . . . . . . . . . . Fab Network Shutdowns . | . . . . . . . . . . . . . Hacking | -11 -10 -10 -9 -8 -7 -6 -6 -6 -5 -5 -5 -4 --------- Run | Scr Mat Min Mat Mat Fac Fac Low Low Fac Ext Cet Fac Machines Accessed 30 | . 1 . 5 . 2 5 1 . 2 7 3 4 Terminals 23 | . 1 . 4 . . 3 . . 1 7 3 4 Fabricators 2 | . . . . . 1 1 . . . . . . Repair Stations . | . . . . . . . . . . . . . Recycling Units 4 | . . . 1 . 1 1 . . 1 . . . Scanalyzers . | . . . . . . . . . . . . . Garrison Access . | . . . . . . . . . . . . . Total Hacks 70 | . 2 . 18 . 5 12 1 . 4 9 10 9 Successful 28 | . 2 . 10 . 1 4 1 . 2 4 3 1 Failed 42 | . . . 8 . 4 8 . . 2 5 7 8 Catastrophic 11 | . . . . . . 3 . . 1 2 2 3 Database Lockouts . | . . . . . . . . . . . . . Manual 33 | . . . 15 . 1 8 . . 1 1 1 6 Terminals 53 | . 2 . 16 . . 6 . . 1 9 10 9 Fabricators 6 | . . . . . 2 4 . . . . . . Repair Stations . | . . . . . . . . . . . . . Recycling Units 10 | . . . 2 . 3 2 . . 3 . . . Scanalyzers . | . . . . . . . . . . . . . Garrison Access . | . . . . . . . . . . . . . Terminal Hacks 18 | . 2 . 4 . . 2 1 . 1 4 3 1 Record 3 | . . . . . . . . . . . 3 . Open Door 4 | . . . . . . . 1 . 1 2 . . Emergency Access Points 1 | . . . 1 . . . . . . . . . Recycling Unit Index 1 | . . . . . . 1 . . . . . . Alert Level 3 | . 1 . 1 . . 1 . . . . . . Unreport Threat 2 | . . . 1 . . . . . . . . 1 Locate Traps 1 | . . . . . . . . . . 1 . . Patrol Status 1 | . . . 1 . . . . . . . . . Assault Status 1 | . . . . . . . . . . 1 . . Registered Prototypes 1 | . 1 . . . . . . . . . . . Fabricator Hacks . | . . . . . . . . . . . . . Repair Station Hacks . | . . . . . . . . . . . . . Recycling Unit Hacks . | . . . . . . . . . . . . . Scanalyzer . | . . . . . . . . . . . . . Garrison Access Hacks . | . . . . . . . . . . . . . Unauthorized Hacks 10 | . . . 6 . 1 2 . . 1 . . . Terminals 4 | . . . 4 . . . . . . . . . Track 1 | . . . 1 . . . . . . . . . Botnet 2 | . . . 2 . . . . . . . . . Detonate 1 | . . . 1 . . . . . . . . . Fabricators 1 | . . . . . . 1 . . . . . . Download 1 | . . . . . . 1 . . . . . . Repair Stations . | . . . . . . . . . . . . . Recycling Units 5 | . . . 2 . 1 1 . . 1 . . . Monitor 1 | . . . 1 . . . . . . . . . Tunnel 4 | . . . 1 . 1 1 . . 1 . . . Scanalyzers . | . . . . . . . . . . . . . Garrison Access . | . . . . . . . . . . . . . Data Cores Recovered . | . . . . . . . . . . . . . Used . | . . . . . . . . . . . . . Hacking Detections 23 | . . . 4 . 2 4 . . 1 6 3 3 Full Trace Events 7 | . . . 1 . . 1 . . . . 3 2 Feedback Events 1 | . . . . . . . . . . . . 1 Corruption 1 | . . . . . . . . . . . . 1 Feedback Blocked . | . . . . . . . . . . . . . Robot Schematics Acquired . | . . . . . . . . . . . . . Robots Built . | . . . . . . . . . . . . . Matter . | . . . . . . . . . . . . . Time . | . . . . . . . . . . . . . Total Robot Build Rating . | . . . . . . . . . . . . . Part Schematics Acquired 1 | . . . . . . 1 . . . . . . Parts Built . | . . . . . . . . . . . . . Matter . | . . . . . . . . . . . . . Time . | . . . . . . . . . . . . . Total Part Build Rating . | . . . . . . . . . . . . . Parts Repaired . | . . . . . . . . . . . . . Time . | . . . . . . . . . . . . . Parts Recycled . | . . . . . . . . . . . . . Recycled Matter . | . . . . . . . . . . . . . Retrieved Matter . | . . . . . . . . . . . . . Retrieved Components . | . . . . . . . . . . . . . Parts Scanalyzed . | . . . . . . . . . . . . . Part Schematics Acquired . | . . . . . . . . . . . . . Parts Damaged . | . . . . . . . . . . . . . Bothacking | -11 -10 -10 -9 -8 -7 -6 -6 -6 -5 -5 -5 -4 ------------ Run | Scr Mat Min Mat Mat Fac Fac Low Low Fac Ext Cet Fac Used RIF Installer . | . . . . . . . . . . . . . Robots Hacked . | . . . . . . . . . . . . . Non-combat . | . . . . . . . . . . . . . Combat . | . . . . . . . . . . . . . Robot Hacks Applied . | . . . . . . . . . . . . . Relay Couplers Released . | . . . . . . . . . . . . . Robots Rewired 11 | . . . . . . 1 1 . . 9 . . Allies Hacked . | . . . . . . . . . . . . . Hacks Repelled . | . . . . . . . . . . . . . Allies | -11 -10 -10 -9 -8 -7 -6 -6 -6 -5 -5 -5 -4 -------- Run | Scr Mat Min Mat Mat Fac Fac Low Low Fac Ext Cet Fac Total Allies 18 | . . . . . . 1 1 . . 11 5 . Largest Group 8 | . . . . . . 1 1 . . 8 8 7 Highest-Rated Group 641 | . . . . . . 27 32 . . 363 641 634 Highest-Rated Ally 156 | . . . . . . 27 32 . . 156 140 140 Total Orders . | . . . . . . . . . . . . . Ally Attacks 285 | . . . . . . . 3 . . 51 169 62 Total Damage 8195 | . . . . . . . 154 . . 1281 4133 2627 Kills 47 | . . . . . . . 1 . . 9 25 12 Allies Corrupted 1 | . . . . . . . . . . . . 1 Allies Melted . | . . . . . . . . . . . . . Intel | -11 -10 -10 -9 -8 -7 -6 -6 -6 -5 -5 -5 -4 ------- Run | Scr Mat Min Mat Mat Fac Fac Low Low Fac Ext Cet Fac Robot Analysis Total . | . . . . . . . . . . . . . Derelict Logs Recovered 1 | . . . . . . . 1 . . . . . Drone Launches . | . . . . . . . . . . . . . Drone Recoveries . | . . . . . . . . . . . . . Exploration | -11 -10 -10 -9 -8 -7 -6 -6 -6 -5 -5 -5 -4 ------------- Run | Scr Mat Min Mat Mat Fac Fac Low Low Fac Ext Cet Fac Turns Passed 6939 | 62 69 237 836 465 633 960 632 32 266 1460 356 931 Spaces Moved 4227 | 41 53 165 435 182 331 488 783 56 256 800 178 459 Core 628 | 2 . . . 31 9 5 499 56 24 2 . . Treads 1962 | . . . . 113 276 389 7 . 6 534 178 459 Legs 870 | 39 53 165 435 38 46 94 . . . . . . Wheels 301 | . . . . . . . . . 37 264 . . Hover 466 | . . . . . . . 277 . 189 . . . Flight . | . . . . . . . . . . . . . Fastest Speed 50 | 50 120 120 120 50 50 120 50 50 50 100 160 160 Average Speed 127 | 116 120 120 142 148 155 151 70 50 74 144 160 160 Slowest Speed 250 | 120 120 120 150 180 190 250 160 50 160 180 163 160 Overloaded Moves . | . . . . . . . . . . . . . Propulsion Burnouts . | . . . . . . . . . . . . . Robots Hopped . | . . . . . . . . . . . . . Cave-ins Triggered 1 | . . . . . . . . . . . . 1 Exploration Rate (%) 31 | 5 12 35 42 19 11 15 87 8 7 84 69 15 Regions Visited 12 Branch Regions 5 Pre-discovered Areas 4 | . . . 1 . 1 1 . . 1 . . . Known Exits Taken 1 | . . . . . . 1 . . . . . . Unknown Exits Taken 11 | 1 1 1 1 1 1 . 1 1 1 1 1 . Scrap Searched 5 | . . 1 . . . . 3 1 . . . . Spaces Dug 21 | . . . 11 . . 3 1 . . 6 . . Terrain Destroyed 375 | . . . 62 78 . 38 1 . . 51 7 138 Melee 6 | . . . 2 . . 3 1 . . . . . Projectile 98 | . . . 10 9 . . . . . 20 7 52 AOE 271 | . . . 50 69 . 35 . . . 31 . 86 Terrain Rammed . | . . . . . . . . . . . . . Walls Destroyed . | . . . . . . . . . . . . . Machines Disabled . | . . . . . . . . . . . . . Actions | -11 -10 -10 -9 -8 -7 -6 -6 -6 -5 -5 -5 -4 --------- Run | Scr Mat Min Mat Mat Fac Fac Low Low Fac Ext Cet Fac Total 5127 | 52 57 186 570 274 407 633 830 57 307 992 211 551 Wait 261 | 2 . 2 79 8 17 66 8 . 20 26 2 31 Move 4215 | 40 52 164 434 181 330 487 782 55 255 799 177 459 Hop . | . . . . . . . . . . . . . Pick Up 36 | 4 1 2 2 3 7 4 4 . . 4 2 3 Fast Attach 104 | 6 1 3 6 4 12 13 4 1 9 25 9 11 Attach 27 | . . . 1 6 7 7 . . 3 1 . 2 Detach 11 | . 1 2 . 1 3 2 . . 2 . . . Swap 8 | . . . 4 1 1 1 . . . 1 . . Drop 32 | . 1 3 3 1 3 4 . . 1 3 8 5 Fire 226 | . 1 10 36 18 21 14 6 1 16 51 13 39 Melee 103 | . . . 4 48 . 35 16 . . . . . Ram 3 | . . . . 2 . . . . 1 . . . Kick 1 | . . . 1 . . . . . . . . . Crush 8 | . . . . 1 6 . . . . . . 1 Escape Stasis . | . . . . . . . . . . . . . Rewire 92 | . . . . . . . 10 . . 82 . . Trap . | . . . . . . . . . . . . . Miscellaneous . | . . . . . . . . . . . . . Route ------- -11/Scrapyard -10/Materials -10/Mines -9/Materials -8/Materials -7/Factory (discovered 2 exits: *Fac x2) -6/Factory (discovered 2 exits: *Low x2) -6/Lower Caves -6/Lower Caves -5/Factory -5/Extension (discovered 3 exits: *Fac x2 / *Cet) -5/Cetus (discovered 2 exits: *Fac / [*Arc]) -4/Factory History --------- Turn | Location | Event 8 | -11/Scrapyard | Discovered new exit (range 16) 63 | -11/Scrapyard | Entered Materials 87 | -10/Materials | Discovered new exit (range 9) 132 | -10/Materials | Entered Mines 304 | -10/Mines | Received a Rocket Launcher from a helpful Derelict 309 | -10/Mines | Build established: Mutant 356 | -10/Mines | Discovered new exit (range 12) 369 | -10/Mines | Entered Materials 369 | -9/Materials | Evolved 2 slots: Utility x1, Weapon x1 1156 | -9/Materials | Discovered new exit (range 15) 1205 | -9/Materials | Entered another Materials area 1205 | -8/Materials | Evolved 2 slots: Utility x2 1360 | -8/Materials | Lost 6 parts (1p2u3w) 1500 | -8/Materials | Core integrity fell below 50% 1542 | -8/Materials | Lost 3 parts (1n2u) 1621 | -8/Materials | Discovered new exit (range 11) 1655 | -8/Materials | Core integrity fell below 20% 1670 | -8/Materials | Entered Factory 1670 | -7/Factory | Evolved 2 slots: Propulsion x2 1691 | -7/Factory | Lost 5 parts (1p1n1u2w) 1755 | -7/Factory | Lost 3 parts (3n) 2062 | -7/Factory | Discovered new exit (range 4) 2236 | -7/Factory | Discovered new exit (range 14) 2303 | -7/Factory | Entered another Factory area 2303 | -6/Factory | Evolved 2 slots: Utility x1, Weapon x1 2395 | -6/Factory | Lost 4 parts (1p1u2w) 2703 | -6/Factory | Discovered new exit (range 11) 2719 | -6/Factory | Identified exit to Lower Caves 2929 | -6/Factory | Spotted B-75 Beast 3054 | -6/Factory | Lost 12 parts (2p4n2u4w) 3175 | -6/Factory | Discovered exit to Lower Caves (range 3) 3263 | -6/Factory | Entered Lower Caves 3420 | -6/Lower Caves | Core integrity fell below 50% 3593 | -6/Lower Caves | Attracted the attention of an 0b10 outpost 3615 | -6/Lower Caves | System corruption reached 10% 3623 | -6/Lower Caves | Released all parts (4) 3626 | -6/Lower Caves | Core integrity fell below 20% 3652 | -6/Lower Caves | Lost 6 parts (2n3u1w) 3696 | -6/Lower Caves | Learned Factory trap positions 3865 | -6/Lower Caves | Encountered a Warlord checkpoint 3875 | -6/Lower Caves | Discovered new exit (range 12) 3895 | -6/Lower Caves | Entered another Lower Caves area 3908 | -6/Lower Caves | Coil Gun stolen by Master Thief 3923 | -6/Lower Caves | Discovered new exit (range 8) 3927 | -6/Lower Caves | Entered Factory 3927 | -5/Factory | Evolved 2 slots: Weapon x2 3928 | -5/Factory | Loaded intel: 90 trap records 4113 | -5/Factory | Spotted B-75 Beast 4185 | -5/Factory | Discovered new exit (range 9) 4193 | -5/Factory | Entered Extension 4564 | -5/Extension | Rescued A7 4571 | -5/Extension | Energy Cycler disabled 4571 | -5/Extension | Rescued a captive Derelict 4572 | -5/Extension | Rescued a captive Derelict 4572 | -5/Extension | Rescued a captive Derelict 4573 | -5/Extension | Rescued a captive Derelict 4575 | -5/Extension | Rescued a captive Derelict 4579 | -5/Extension | Rescued a captive Derelict 4602 | -5/Extension | Lost 4 parts (1p1n1u1w) 4684 | -5/Extension | P-70 Sage assimilated allied Z9-JHH(l) 4714 | -5/Extension | Spotted B-75 Beast 4730 | -5/Extension | Spotted B-75 Beast 4754 | -5/Extension | Destroyed B-75 Beast 4765 | -5/Extension | Discovered new exit (range 15) 4775 | -5/Extension | Lost 6 parts (1p1n2u2w) 5041 | -5/Extension | Build established: Scavenger-Executioner 5353 | -5/Extension | Build established: Scavenger-Gunner 5621 | -5/Extension | Discovered new exit (range 16) 5623 | -5/Extension | Discovered new exit (range 15) 5653 | -5/Extension | Entered Cetus 5653 | -5/Cetus | Accompanied by 8 allies (A7) 5658 | -5/Cetus | Acquired a Cetus Manufacturing Module code from A7 5676 | -5/Cetus | Spotted Cetus Guard 5676 | -5/Cetus | Spotted Cetus Guard 5678 | -5/Cetus | Spotted Cetus Guard 5679 | -5/Cetus | Destroyed Cetus Guard 5679 | -5/Cetus | Spotted Cetus Guard 5681 | -5/Cetus | Allies destroyed Cetus Guard 5683 | -5/Cetus | Allies destroyed Cetus Guard 5695 | -5/Cetus | Allies destroyed Cetus Guard 5792 | -5/Cetus | Started Cetus Manufacturing Module 5817 | -5/Cetus | Manufactured an Enhanced Grunt 5842 | -5/Cetus | Manufactured an Enhanced Grunt 5867 | -5/Cetus | Manufactured an Enhanced Grunt 5892 | -5/Cetus | Manufactured an Enhanced Grunt 5916 | -5/Cetus | Discovered new exit (range 16) 5917 | -5/Cetus | Manufactured an Enhanced Grunt 5945 | -5/Cetus | Spotted Cetus Guard 5946 | -5/Cetus | Spotted Cetus Guard 5948 | -5/Cetus | Spotted Cetus Guard 5949 | -5/Cetus | Spotted Cetus Guard 5958 | -5/Cetus | Destroyed Cetus Guard 5963 | -5/Cetus | Discovered new exit (range 16) 5964 | -5/Cetus | Allies destroyed Cetus Guard 5970 | -5/Cetus | Destroyed Cetus Guard 5971 | -5/Cetus | Allies destroyed Cetus Guard 5986 | -5/Cetus | Met Revision 17 6009 | -5/Cetus | Entered Factory 6009 | -4/Factory | Accompanied by 7 allies (A7) 6009 | -4/Factory | Evolved 2 slots: Propulsion x2 6011 | -4/Factory | Build established: Scavenger-Executioner 6509 | -4/Factory | First assault squad dispatched 6663 | -4/Factory | Lost 4 parts (2u2w) 6820 | -4/Factory | Crushed by falling debris 6820 | -4/Factory | System corruption reached 10% 6940 | -4/Factory | Self-destructed Last Messages --------------- 06931_ R-10 Processor collects Myomer Leg. 06932_ P-70 Sage resets R-10 Processor, system corruption cleaned. 06932_ System corrupted: Electrolaser targeting data glitched. 06932_ System corrupted: Adv. Variable Charge Gun targeting data glitched. 06932_ Slug penetrates G-67 Veteran. 06932_ G-67 Veteran suffers critical hit. 06932_ G-67 Veteran destroyed. 06932_ Switching to secondary target: P-70 Sage. 06932_ System corrupted: Imp. KE Penetrator targeting data glitched. 06932_ Slug penetrates P-70 Sage. 06932_ Slug penetrates Wall. 06935_ Power failure averted by Adv. Cryofiber Web. 06936_ Slug penetrates Wall. 06937_ Adv. Variable Charge Gun destroyed. 06938_ Short circuit averted by Adv. Cryofiber Web. 06939_ Enh. Optical Array permanently disabled. 06939_ Overheating: Short circuit. 06940_ Power failure averted by Adv. Cryofiber Web. 06940_ Overheating: System interference. 06940_ Adv. Cryofiber Web temporarily disabled. Map ----- +----------------------------------------------------+ | """"" # ??????????????????????????????? | | ?????????????????????????????? | | ?????????????????????????????? | | ???????????#?????????????????? | | ??????? ? ??????????????????? | | #???? " #?????????????????? | | #???? " +?????????????????? | | =[ #???? " #?????????????????? | | # ## # ?????? #???? #?#?????????? | | ???### # ???? # ??????????? | | ###### ???? ???? #??????????? | | #????## = ????? ??? #???????????? | | #????# ????? ??? #???????????? | | #????# ?? ??????? ??? #???????????? | | #????? ?????????? % ?? #???????????? | | #?????# ?????????## ###!##;#????????????? | | #?????# ?????????? ; # [ #?????????????? | | #?????# ?????###?? ; ;% #?????????????? | | ####### ?????# ####;%;;;%;######???####+## | | #? ####### ## %%* ; # ##### | | #??? # %! p %#; | | #????? # % % | | #??????? # =!% %;#; | | #????????? # #######g= %=% # ##### | | #???########+## #????#=!* ## ##???# # | | ##### #????#@! # #????# # | | #????# R ## #????# + | | /##### #????# # #????# # | | ## #????# #????# # | | !## #????# ## ######## # | | ## + # | | ! ## ################ #######+### | | ! + #??????????????# # """"" | | ######??????????????# # ""T"" " | | #####???????????????????### ## #### [ " | | ??????????????????????????### #### ##??# " | | ????????????????????????????###???##???#! " | | ???????????????????????????????????????# | | ???????????????????????????????????????########### | | | | | | | | | | | | | | | | | | | | | | | +----------------------------------------------------+ Best States ------------- Heat Dissipation 81 Coolant Potential 65 Energy Generation 25 Energy Capacity 400 Matter Stores 300 Matter Capacity 300 Sight Range 22 Robot Scan Range 16 Terrain Scan Range 20 Terrain Scan Density 10 Base Temperature (-) 200 Armor Coverage 900 Core Shielding 20 Reclamation Efficiency 10 Evasion (%) 51 Targeting Accuracy 8 Recoil Reduction 7 Particle Charging 15 Offensive Hacking 10 Item Schematics ----------------- Biometal Medium Treads | -6/Factory | Downloaded Robot Schematics ------------------ None Fabricated ------------ Nothing Alien Tech Used ----------------- None Achievements -------------- Project G-00 Revising The Future Watch This! Challenges ------------ None Game ------ Seed InsulationImprovedSword Manual? 0 Play Time 01:04:36 Cumulative 83.0 hours Start 2020.11.27 @ 19:00:35 End 2020.11.29 @ 14:26:28 Sessions 3 Manual Loads 0 Difficulty Rogue Special Mode Halloween2020/ForbiddenLore Game No. 158 Rogue 154 Adventurer 0 Explorer 4 Win Type - Total 0 Types 0/0/0/0/0/0/0/0/0 Lore% 58 Gallery% 63 Achievement% 44 Wizard Run 0 Options --------- ASCII 1 Keyboard 1 Movement Numpad Keybinds 0 Fullscreen 1 Font 18/X11 Map View 76x50 Tactical HUD 1 Map Filters NONE Filters NONE Steam 1 RUN: beee9c0d-eb94-4591-87aa-1d007d84a511